fUSD/lending_fUSD_20250216
["ID","MTS","AMOUNT","RATE_DAILY","PERIOD"]
[353283434,1739739060493,-500.0,0.00011123,2]
[353283435,1739739060508,-500.0,0.00011123,2]
[353283436,1739739060523,-500.0,0.00011123,2]
[353283437,1739739060539,-500.0,0.00011123,2]
[353283438,1739739060554,-500.0,0.00011123,2]
[353283439,1739739060569,-608.58,0.00011123,2]
[353283440,1739739060584,-500.0,0.00011123,2]
[353283441,1739739060599,-500.0,0.00011123,2]
[353283442,1739739060614,-500.0,0.00011123,2]
[353283443,1739739060629,-249.66779517,0.00011123,2]
[353283444,1739739060644,-504.22054015,0.00011123,2]
[353283445,1739739060660,-500.0,0.00011123,2]
[353283446,1739739060675,-500.0,0.00011123,2]
[353283447,1739739060691,-504.79,0.00011123,2]
[353283448,1739739060706,-500.0,0.00011123,2]
[353283449,1739739060722,-500.0,0.00011123,2]
[353283450,1739739060736,-500.0,0.00011123,2]
[353283451,1739739060752,-500.0,0.00011123,2]
[353283452,1739739060767,-551.53320648,0.00011123,2]
[353283453,1739739060783,-500.0,0.00011123,2]
[353283454,1739739060798,-500.0,0.00011123,2]
[353283455,1739739060812,-500.0,0.00011123,2]
[353283456,1739739060827,-500.0,0.00011123,2]
[353283457,1739739060843,-500.0,0.00011123,2]
[353283458,1739739060861,-500.0,0.00011123,2]
[353283459,1739739060877,-1520.38,0.00011123,2]
[353283460,1739739060896,-500.0,0.00011123,2]
[353283461,1739739060911,-603.03,0.00011123,2]
[353283462,1739739060928,-275.56916009,0.00011123,2]
[353283463,1739739061716,-24.14763243,0.00011123,2]
[353283464,1739739061726,-500.0,0.00011123,2]
[353283465,1739739061736,-500.0,0.00011123,2]
[353283466,1739739061746,-522.92,0.00011123,2]
[353283467,1739739061755,-500.0,0.00011123,2]
[353283468,1739739061765,-500.0,0.00011123,2]
[353283469,1739739061775,-500.0,0.00011123,2]
[353283470,1739739061784,-339.72,0.00011123,2]
[353283471,1739739061794,-500.0,0.00011123,2]
[353283472,1739739061804,-500.0,0.00011123,2]
[353283473,1739739061813,-370.01634983,0.00011123,2]
[353283474,1739739061823,-500.0,0.00011123,2]
[353283475,1739739061832,-500.0,0.00011123,2]
[353283476,1739739061841,-535.64,0.00011123,2]
[353283477,1739739061853,-500.0,0.00011123,2]
[353283478,1739739061863,-500.0,0.00011123,2]
[353283479,1739739061873,-500.0,0.00011123,2]
[353283480,1739739061885,-500.0,0.00011123,2]
[353283481,1739739061897,-500.0,0.00011123,2]
[353283482,1739739061907,-500.0,0.00011123,2]
[353283483,1739739061916,-500.0,0.00011123,2]
[353283484,1739739061927,-500.0,0.00011123,2]
[353283485,1739739061936,-500.0,0.00011123,2]
[353283486,1739739061946,-500.0,0.00011123,2]
[353283487,1739739061955,-500.0,0.00011123,2]
[353283488,1739739061968,-500.0,0.00011123,2]
[353283489,1739739061978,-500.0,0.00011123,2]
[353283490,1739739061988,-500.0,0.00011123,2]
[353283491,1739739061998,-544.53,0.00011123,2]
[353283492,1739739062008,-340.781064,0.00011123,2]
[353283493,1739739062017,-500.0,0.00011123,2]
[353283494,1739739062026,-500.0,0.00011123,2]
[353283495,1739739062036,-589.94,0.00011123,2]
[353283496,1739739062047,-500.0,0.00011123,2]
[353283497,1739739062057,-500.0,0.00011123,2]
[353283498,1739739062067,-500.0,0.00011123,2]
[353283499,1739739062077,-500.0,0.00011123,2]
[353283500,1739739062087,-500.0,0.00011123,2]
[353283501,1739739062097,-500.0,0.00011123,2]
[353283502,1739739062109,-500.0,0.00011123,2]
[353283503,1739739062119,-500.0,0.00011123,2]
[353283504,1739739062129,-500.0,0.00011123,2]
[353283505,1739739062139,-508.39,0.00011123,2]
[353283506,1739739062148,-516.33,0.00011123,2]
[353283507,1739739062157,-500.0,0.00011123,2]
[353283508,1739739062166,-500.0,0.00011123,2]
[353283509,1739739062176,-500.0,0.00011123,2]
[353283510,1739739062185,-500.0,0.00011123,2]
[353283511,1739739062195,-500.0,0.00011123,2]
[353283512,1739739062205,-500.0,0.00011123,2]
[353283513,1739739062214,-500.0,0.00011123,2]
[353283514,1739739062223,-500.0,0.00011123,2]
[353283515,1739739062233,-500.0,0.00011123,2]
[353283516,1739739062242,-500.0,0.00011123,2]
[353283517,1739739062251,-500.0,0.00011123,2]
[353283518,1739739062263,-1169.59,0.00011123,2]
[353283519,1739739062273,-500.0,0.00011123,2]
[353283520,1739739062283,-500.0,0.00011123,2]
[353283521,1739739062292,-1988.143497,0.00011123,2]
[353283522,1739739062301,-500.0,0.00011123,2]
[353283523,1739739062311,-500.0,0.00011123,2]
[353283524,1739739062320,-500.0,0.00011123,2]
[353283525,1739739062330,-500.0,0.00011123,2]
[353283526,1739739062340,-500.0,0.00011123,2]
[353283527,1739739062351,-500.0,0.00011123,2]
[353283528,1739739062361,-777.52,0.00011123,2]
[353283529,1739739062371,-500.0,0.00011123,2]
[353283530,1739739062381,-500.0,0.00011123,2]
[353283531,1739739062392,-500.0,0.00011123,2]
[353283532,1739739062402,-500.0,0.00011123,2]
[353283533,1739739062412,-518.91305615,0.00011123,2]
[353283534,1739739062422,-500.0,0.00011123,2]
[353283535,1739739062431,-500.0,0.00011123,2]
[353283536,1739739062441,-876.42,0.00011123,2]
[353283537,1739739062451,-603.08940189,0.00011123,2]
[353283538,1739739062461,-156.154481,0.00011123,2]
[353283539,1739739062471,-1101.08,0.00011123,2]
[353283540,1739739062481,-500.0,0.00011123,2]
[353283541,1739739062490,-514.68459317,0.00011123,2]
[353283542,1739739062500,-500.0,0.00011123,2]
[353283543,1739739062510,-502.36164623,0.00011123,2]
[353283544,1739739062520,-750.81,0.00011123,2]
[353283545,1739739062529,-574.08,0.00011123,2]
[353283546,1739739062539,-500.0,0.00011123,2]
[353283547,1739739062549,-500.0,0.00011154,2]
[353283548,1739739062558,-500.0,0.00011154,2]
[353283549,1739739062568,-1000.0,0.00011164,2]
[353283550,1739739062579,-1004.77,0.00011164,2]
[353283551,1739739062588,-500.0,0.00011164,2]
[353283552,1739739062600,-500.0,0.00011164,2]
[353283553,1739739062610,-760.67,0.00011164,2]
[353283554,1739739062619,-500.0,0.00011164,2]
[353283555,1739739062630,-738.76,0.00011204,2]
[353283556,1739739062639,-741.86,0.00011204,2]
[353283557,1739739062649,-4076.46346,0.00011205,2]
[353283558,1739739062659,-500.0,0.00011205,2]
[353283559,1739739062668,-500.0,0.00011205,2]
[353283560,1739739062677,-96.67128317,0.00011205,2]
[353283561,1739739062691,-403.32871683,0.00011205,2]
[353283562,1739739062701,-500.0,0.00011205,2]
[353283563,1739739062711,-500.0,0.00011205,2]
[353283564,1739739062720,-500.0,0.00011205,2]
[353283565,1739739062730,-500.0,0.00011205,2]
[353283566,1739739062740,-500.0,0.00011205,2]
[353283567,1739739062749,-269.56947527,0.00011205,2]
[353283568,1739739062761,-230.43052473,0.00011205,2]
[353283569,1739739062770,-53.47375989,0.00011205,2]
[353283570,1739739062782,-372.98264545,0.00011205,2]
[353283571,1739739062794,-73.54359466,0.00011205,2]
[353283572,1739739062803,-500.0,0.00011205,2]
[353283573,1739739062812,-407.58839957,0.00011205,2]
[353283574,1739739062824,-92.41160043,0.00011205,2]
[353283575,1739739062952,-500.0,0.00011205,2]
[353283576,1739739062963,-500.0,0.00011205,2]
[353283577,1739739062973,-509.36923059,0.00011205,2]
[353283578,1739739062983,-436.79301358,0.00011205,2]
[353283579,1739739062992,-500.0,0.00011205,2]
[353283580,1739739063001,-500.0,0.00011205,2]
[353283581,1739739063012,-500.0,0.00011205,2]
[353283582,1739739063022,-500.0,0.00011205,2]
[353283583,1739739063032,-500.0,0.00011205,2]
[353283584,1739739063042,-500.0,0.00011205,2]
[353283585,1739739063052,-500.0,0.00011205,2]
[353283586,1739739063062,-500.0,0.00011205,2]
[353283587,1739739063072,-500.0,0.00011205,2]
[353283588,1739739063082,-500.0,0.00011205,2]
[353283589,1739739063091,-500.0,0.00011205,2]
[353283590,1739739063101,-500.0,0.00011205,2]
[353283591,1739739063110,-511.23123556,0.00011205,2]
[353283592,1739739063120,-500.0,0.00011205,2]
[353283593,1739739063129,-500.0,0.00011205,2]
[353283594,1739739063139,-500.0,0.00011205,2]
[353283595,1739739063149,-500.0,0.00011205,2]
[353283596,1739739063158,-23.60243882,0.00011205,2]
[353283597,1739739063194,-500.0,0.00010958,2]
[353283598,1739739063204,-476.39756118,0.00011205,2]
[353283599,1739739063214,-23.60243882,0.00011205,2]
[353283600,1739739063225,-476.39756118,0.00011205,2]
[353283601,1739739063234,-261.88539733,0.00011205,2]
[353283602,1739739063246,-238.11460267,0.00011205,2]
[353283603,1739739063256,-89.30019893,0.00011205,2]
[353283604,1739739063267,-410.69980107,0.00011205,2]
[353283605,1739739063277,-500.0,0.00011205,2]
[353283606,1739739063287,-89.30019893,0.00011205,2]
[353283607,1739739064114,-500.0,0.00010958,2]
[353283608,1739739064123,-500.0,0.00010958,2]
[353283609,1739739064133,-609.82704432,0.00010958,2]
[353283610,1739739064142,-500.0,0.00010958,2]
[353283611,1739739064152,-500.0,0.00010958,2]
[353283612,1739739064161,-500.0,0.00010958,2]
[353283613,1739739064171,-500.0,0.00010958,2]
[353283614,1739739064180,-500.0,0.00010958,2]
[353283615,1739739064189,-500.0,0.00010958,2]
[353283616,1739739064199,-501.79763764,0.00010958,2]
[353283617,1739739064208,-500.0,0.00010958,2]
[353283618,1739739064218,-500.0,0.00011041,2]
[353283619,1739739064228,-508.92868184,0.00011041,2]
[353283620,1739739064237,-500.0,0.00011041,2]
[353283621,1739739064247,-500.0,0.00011041,2]
[353283622,1739739064256,-335.64,0.00011041,2]
[353283623,1739739064267,-500.0,0.00011041,2]
[353283624,1739739064276,-500.0,0.00011041,2]
[353283625,1739739064286,-500.0,0.00011123,2]
[353283626,1739739064296,-500.0,0.00011123,2]
[353283627,1739739064306,-410.69980107,0.00011205,2]
[353283628,1739739064316,-500.0,0.00011205,2]
[353283629,1739739064326,-500.0,0.00011205,2]
[353283630,1739739064340,-500.0,0.00011205,2]
[353283631,1739739064350,-500.0,0.00011205,2]
[353283632,1739739064360,-505.48606712,0.00011205,2]
[353283633,1739739064370,-500.0,0.00011205,2]
[353283634,1739739064381,-500.0,0.00011205,2]
[353283635,1739739064391,-500.0,0.00011205,2]
[353283636,1739739064401,-500.0,0.00011205,2]
[353283637,1739739064412,-500.0,0.00011205,2]
[353283638,1739739064423,-500.0,0.00011205,2]
[353283639,1739739064432,-500.0,0.00011205,2]
[353283640,1739739064442,-500.0,0.00011205,2]
[353283641,1739739064452,-500.0,0.00011205,2]
[353283642,1739739064461,-500.0,0.00011205,2]
[353283643,1739739064471,-500.0,0.00011205,2]
[353283644,1739739064480,-500.0,0.00011205,2]
[353283645,1739739064489,-500.0,0.00011205,2]
[353283646,1739739064499,-500.0,0.00011205,2]
[353283647,1739739064508,-500.0,0.00011205,2]
[353283648,1739739064518,-500.0,0.00011205,2]
[353283649,1739739064528,-500.0,0.00011205,2]
[353283650,1739739064537,-500.0,0.00011205,2]
[353283651,1739739064547,-500.0,0.00011205,2]
[353283652,1739739064556,-500.0,0.00011205,2]
[353283653,1739739064566,-500.0,0.00011205,2]
[353283654,1739739064575,-500.0,0.00011205,2]
[353283655,1739739064585,-500.0,0.00011205,2]
[353283656,1739739064594,-500.0,0.00011205,2]
[353283657,1739739064605,-500.0,0.00011205,2]
[353283658,1739739064615,-284.4987198,0.00011205,2]
[353283659,1739739064624,-500.0,0.00011205,2]
[353283660,1739739064633,-500.0,0.00011205,2]
[353283661,1739739064643,-500.0,0.00011205,2]
[353283662,1739739064652,-500.0,0.00011205,2]
[353283663,1739739064662,-500.0,0.00011205,2]
[353283664,1739739064672,-500.0,0.00011205,2]
[353283665,1739739064682,-500.0,0.00011205,2]
[353283666,1739739064691,-500.0,0.00011205,2]
[353283667,1739739064700,-500.0,0.00011205,2]
[353283668,1739739064709,-500.0,0.00011205,2]
[353283669,1739739064719,-500.0,0.00011205,2]
[353283670,1739739064728,-500.0,0.00011205,2]
[353283671,1739739064737,-500.0,0.00011205,2]
[353283672,1739739064747,-500.0,0.00011205,2]
[353283673,1739739064756,-500.0,0.00011205,2]
[353283674,1739739064766,-500.0,0.00011205,2]
[353283675,1739739064776,-500.0,0.00011205,2]
[353283676,1739739064785,-504.4388749,0.00011205,2]
[353283677,1739739064795,-500.0,0.00011205,2]
[353283678,1739739064804,-500.0,0.00011205,2]
[353283679,1739739064813,-500.0,0.00011205,2]
[353283680,1739739064823,-500.0,0.00011205,2]
[353283681,1739739064832,-500.0,0.00011205,2]
[353283682,1739739064988,-500.0,0.00011205,2]
[353283683,1739739064998,-500.0,0.00011205,2]
[353283684,1739739065008,-503.42757966,0.00011205,2]
[353283685,1739739065018,-500.0,0.00011205,2]
[353283686,1739739065026,-500.0,0.00011205,2]
[353283687,1739739065035,-500.0,0.00011205,2]
[353283688,1739739065045,-500.0,0.00011205,2]
[353283689,1739739065054,-500.0,0.00011205,2]
[353283690,1739739065064,-500.0,0.00011205,2]
[353283691,1739739065073,-510.83201237,0.00011205,2]
[353283692,1739739065083,-500.0,0.00011205,2]
[353283693,1739739065092,-500.0,0.00011205,2]
[353283694,1739739065103,-500.0,0.00011205,2]
[353283695,1739739065112,-500.0,0.00011205,2]
[353283696,1739739065121,-500.0,0.00011205,2]
[353283697,1739739065130,-500.0,0.00011205,2]
[353283698,1739739065139,-504.7316214,0.00011205,2]
[353283699,1739739065148,-500.0,0.00011205,2]
[353283700,1739739065158,-500.0,0.00011205,2]
[353283701,1739739065167,-500.0,0.00011205,2]
[353283702,1739739065177,-500.0,0.00011205,2]
[353283703,1739739065186,-500.0,0.00011205,2]
[353283704,1739739065197,-500.0,0.00011205,2]
[353283705,1739739065208,-500.0,0.00011205,2]
[353283706,1739739065217,-500.0,0.00011205,2]
[353283707,1739739065226,-225.84501727,0.00011205,2]
[353283708,1739739065457,-618.98,0.00010958,2]
[353283709,1739739065467,-500.0,0.00010958,2]
[353283710,1739739065476,-500.0,0.00010958,2]
[353283711,1739739065486,-500.0,0.00010958,2]
[353283712,1739739065496,-500.0,0.00011041,2]
[353283713,1739739065505,-583.99,0.00011041,2]
[353283714,1739739065514,-274.15498273,0.00011205,2]
[353283715,1739739065524,-500.0,0.00011205,2]
[353283716,1739739065534,-500.0,0.00011205,2]
[353283717,1739739065544,-500.0,0.00011205,2]
[353283718,1739739065553,-500.0,0.00011205,2]
[353283719,1739739065564,-500.0,0.00011205,2]
[353283720,1739739065574,-500.0,0.00011205,2]
[353283721,1739739065583,-500.0,0.00011205,2]
[353283722,1739739065593,-500.0,0.00011205,2]
[353283723,1739739065603,-500.0,0.00011205,2]
[353283724,1739739065612,-500.0,0.00011205,2]
[353283725,1739739065622,-500.0,0.00011205,2]
[353283726,1739739065631,-500.0,0.00011205,2]
[353283727,1739739065640,-500.0,0.00011205,2]
[353283728,1739739065650,-525.34,0.00011205,2]
[353283729,1739739065660,-500.0,0.00011205,2]
[353283730,1739739065669,-434.82274119,0.00011205,2]
[353283731,1739739065680,-500.0,0.00011205,2]
[353283732,1739739065689,-500.0,0.00011205,2]
[353283733,1739739065698,-161.21227308,0.00011205,2]
[353283734,1739739066166,-605.1,0.00010958,2]
[353283735,1739739066175,-500.0,0.00010958,2]
[353283736,1739739066185,-264.7049,0.00010958,2]
[353283737,1739739066249,-235.2951,0.00010958,2]
[353283738,1739739066259,-500.0,0.00010958,2]
[353283739,1739739066269,-594.57,0.00010958,2]
[353283740,1739739066279,-500.0,0.00010958,2]
[353283741,1739739066288,-500.0,0.00010958,2]
[353283742,1739739066297,-500.0,0.00010958,2]
[353283743,1739739066307,-7297.10438024,0.00010958,2]
[353283744,1739739066800,-504.48737868,0.00010958,2]
[353283745,1739739066810,-557.57011433,0.00010958,2]
[353283746,1739739066819,-500.0,0.00010958,2]
[353283747,1739739066829,-500.0,0.00010958,2]
[353283748,1739739066838,-500.0,0.00010958,2]
[353283749,1739739066847,-500.0,0.00010958,2]
[353283750,1739739066859,-6437.94250699,0.00010958,2]
[353283751,1739739066870,-16673.12087199,0.00010958,2]
[353283752,1739739066881,-605.1,0.00011041,2]
[353283753,1739739066895,-564.28,0.00011041,2]
[353283754,1739739066905,-507.67772549,0.00011041,2]
[353283755,1739739066915,-500.0,0.00011041,2]
[353283756,1739739066926,-500.0,0.00011041,2]
[353283757,1739739066935,-198.97,0.00011041,2]
[353283758,1739739066945,-500.0,0.00011041,2]
[353283759,1739739066955,-304.17,0.00011041,2]
[353283760,1739739066965,-500.0,0.00011041,2]
[353283761,1739739066980,-605.1,0.00011123,2]
[353283762,1739739066991,-500.0,0.00011123,2]
[353283763,1739739067000,-361.53207726,0.00011123,2]
[353283764,1739739067012,-161.32792274,0.00011123,2]
[353283765,1739739067023,-338.78772692,0.00011205,2]
[353283766,1739739067032,-200.00851584,0.00011205,2]
[353283767,1739739067058,-500.0,0.00010958,2]
[353283768,1739739067067,-500.0,0.00011123,2]
[353283769,1739739067076,-22.1,0.00011205,2]
[353283770,1739739067094,-277.89148416,0.00011205,2]
[353283771,1739739067105,-500.0,0.00011205,2]
[353283772,1739739067114,-199.96627337,0.00011205,2]
[353283773,1739739067126,-300.03372663,0.00011205,2]
[353283774,1739739067135,-500.0,0.00011205,2]
[353283775,1739739067145,-500.0,0.00011205,2]
[353283776,1739739067154,-500.0,0.00011205,2]
[353283777,1739739067163,-500.0,0.00011205,2]
[353283778,1739739067172,-500.0,0.00011205,2]
[353283779,1739739067182,-500.0,0.00011205,2]
[353283780,1739739067196,-500.0,0.00011205,2]
[353283781,1739739067206,-500.0,0.00011205,2]
[353283782,1739739067215,-500.0,0.00011205,2]
[353283783,1739739067224,-500.0,0.00011205,2]
[353283784,1739739067234,-500.0,0.00011205,2]
[353283785,1739739067244,-500.0,0.00011205,2]
[353283786,1739739067253,-500.0,0.00011205,2]
[353283787,1739739067263,-500.0,0.00011205,2]
[353283788,1739739067273,-500.0,0.00011205,2]
[353283789,1739739067286,-500.0,0.00011205,2]
[353283790,1739739067296,-500.0,0.00011205,2]
[353283791,1739739067306,-500.0,0.00011205,2]
[353283792,1739739067315,-500.0,0.00011205,2]
[353283793,1739739067325,-500.0,0.00011205,2]
[353283794,1739739067334,-500.0,0.00011205,2]
[353283795,1739739067344,-500.0,0.00011205,2]
[353283796,1739739067354,-437.0,0.00011205,2]
[353283797,1739739067364,-500.0,0.00011205,2]
[353283798,1739739067373,-500.0,0.00011205,2]
[353283799,1739739067382,-500.0,0.00011205,2]
[353283800,1739739067391,-500.0,0.00011205,2]
[353283801,1739739067401,-500.0,0.00011205,2]
[353283802,1739739067410,-500.0,0.00011205,2]
[353283803,1739739067420,-500.0,0.00011205,2]
[353283804,1739739067430,-504.2091437,0.00011205,2]
[353283805,1739739067440,-500.0,0.00011205,2]
[353283806,1739739067449,-500.0,0.00011205,2]
[353283807,1739739067459,-500.0,0.00011205,2]
[353283808,1739739067469,-500.0,0.00011205,2]
[353283809,1739739067479,-500.0,0.00011205,2]
[353283810,1739739067489,-500.0,0.00011205,2]
[353283811,1739739067498,-500.0,0.00011205,2]
[353283812,1739739067508,-500.0,0.00011205,2]
[353283813,1739739067518,-513.32493616,0.00011205,2]
[353283814,1739739067528,-500.0,0.00011205,2]
[353283815,1739739067540,-500.0,0.00011205,2]
[353283816,1739739067550,-500.0,0.00011205,2]
[353283817,1739739067559,-500.0,0.00011205,2]
[353283818,1739739067569,-520.88393891,0.00011205,2]
[353283819,1739739067579,-500.0,0.00011205,2]
[353283820,1739739067589,-500.0,0.00011205,2]
[353283821,1739739067598,-500.0,0.00011205,2]
[353283822,1739739067610,-500.0,0.00011205,2]
[353283823,1739739067619,-500.0,0.00011205,2]
[353283824,1739739067629,-500.0,0.00011205,2]
[353283825,1739739067638,-500.0,0.00011205,2]
[353283826,1739739067648,-500.0,0.00011205,2]
[353283827,1739739067658,-500.0,0.00011205,2]
[353283828,1739739067668,-500.0,0.00011205,2]
[353283829,1739739067840,-500.0,0.00011205,2]
[353283830,1739739067849,-504.70345856,0.00011205,2]
[353283831,1739739067859,-500.0,0.00011205,2]
[353283832,1739739067869,-500.0,0.00011205,2]
[353283833,1739739067878,-500.0,0.00011205,2]
[353283834,1739739067893,-500.0,0.00011205,2]
[353283835,1739739067902,-500.0,0.00011205,2]
[353283836,1739739067912,-340.781065,0.00011205,2]
[353283837,1739739067921,-500.0,0.00011205,2]
[353283838,1739739067930,-500.0,0.00011205,2]
[353283839,1739739067940,-500.0,0.00011205,2]
[353283840,1739739067949,-500.0,0.00011205,2]
[353283841,1739739067958,-500.0,0.00011205,2]
[353283842,1739739067970,-500.0,0.00011205,2]
[353283843,1739739067980,-635.5,0.00011205,2]
[353283844,1739739067989,-500.0,0.00011205,2]
[353283845,1739739067999,-500.0,0.00011205,2]
[353283846,1739739068009,-500.0,0.00011205,2]
[353283847,1739739068018,-502.97335653,0.00011205,2]
[353283848,1739739068027,-500.0,0.00011205,2]
[353283849,1739739068037,-510.42641773,0.00011205,2]
[353283850,1739739068047,-500.0,0.00011205,2]
[353283851,1739739068057,-500.0,0.00011205,2]
[353283852,1739739068066,-500.0,0.00011205,2]
[353283853,1739739068076,-500.0,0.00011205,2]
[353283854,1739739068085,-500.0,0.00011205,2]
[353283855,1739739068094,-500.0,0.00011205,2]
[353283856,1739739068104,-500.0,0.00011205,2]
[353283857,1739739068117,-431.26455657,0.00011205,2]
[353283858,1739739068135,-68.73544343,0.00011205,2]
[353283859,1739739068145,-500.0,0.00011205,2]
[353283860,1739739068155,-500.0,0.00011205,2]
[353283861,1739739068165,-500.0,0.00011205,2]
[353283862,1739739068175,-500.0,0.00011205,2]
[353283863,1739739068184,-500.0,0.00011205,2]
[353283864,1739739068194,-673.46,0.00011205,2]
[353283865,1739739068205,-500.0,0.00011205,2]
[353283866,1739739068215,-500.0,0.00011205,2]
[353283867,1739739068224,-500.0,0.00011205,2]
[353283868,1739739068234,-500.0,0.00011205,2]
[353283869,1739739068243,-544.37,0.00011205,2]
[353283870,1739739068253,-500.0,0.00011205,2]
[353283871,1739739068262,-500.0,0.00011205,2]
[353283872,1739739068272,-500.0,0.00011205,2]
[353283873,1739739068281,-500.0,0.00011205,2]
[353283874,1739739068291,-342.77242213,0.00011205,2]
[353283875,1739739068300,-500.0,0.00011205,2]
[353283876,1739739068310,-500.0,0.00011205,2]
[353283877,1739739068319,-500.0,0.00011205,2]
[353283878,1739739068328,-500.0,0.00011205,2]
[353283879,1739739068338,-500.0,0.00011205,2]
[353283880,1739739068347,-515.73,0.00011205,2]
[353283881,1739739068358,-500.0,0.00011205,2]
[353283882,1739739068367,-500.0,0.00011205,2]
[353283883,1739739068376,-500.0,0.00011205,2]
[353283884,1739739068386,-500.0,0.00011205,2]
[353283885,1739739068396,-625.68,0.00011205,2]
[353283886,1739739068405,-506.82392073,0.00011205,2]
[353283887,1739739068415,-516.46,0.00011205,2]
[353283888,1739739068424,-710.54,0.00011205,2]
[353283889,1739739068435,-500.0,0.00011205,2]
[353283890,1739739068444,-500.0,0.00011205,2]
[353283891,1739739068454,-500.0,0.00011205,2]
[353283892,1739739068463,-500.0,0.00011205,2]
[353283893,1739739068473,-32.20968324,0.00011205,2]
[353283896,1739739437506,500.0,0.0002,120]
[353283897,1739739437763,171.18,0.0002,120]
[353283898,1739739908923,621.96,8.219e-05,2]
[353283906,1739740232127,-276.0,8.973e-05,2]
[353283907,1739740232138,-704.62045861,8.973e-05,2]
[353283908,1739740232150,-309.0,8.973e-05,2]
[353283909,1739740232161,-2557.66944139,8.973e-05,2]
[353283910,1739740232171,-196.27,9.931e-05,2]
[353283911,1739740232183,-550.0,0.0001,2]
[353283912,1739740232193,-2594.76967416,0.0001,2]
[353283913,1739740232208,-1569.56510515,0.0001,2]
[353283914,1739740232220,-412.40818989,0.0001,2]
[353283915,1739740232334,-5423.2570308,0.0001,2]
[353283916,1739740232344,-1000.0,0.0001,10]
[353283917,1739740232356,-150.0,0.00010134,2]
[353283918,1739740232365,-150.0,0.00010134,2]
[353283919,1739740232374,-150.0,0.00010134,2]
[353283920,1739740232383,-150.21347789,0.00010134,2]
[353283921,1739740232393,-150.0,0.00010134,2]
[353283922,1739740232402,-537.27,0.00010137,2]
[353283923,1739740232412,-536.6,0.00010198,2]
[353283924,1739740232422,-150.0,0.00010259,2]
[353283925,1739740232431,-1000.0,0.00010363,2]
[353283926,1739740232441,-150.0,0.00010384,2]
[353283927,1739740232450,-150.0,0.00010416,2]
[353283928,1739740232460,-621.96,0.00010479,2]
[353283929,1739740232470,-150.0,0.0001051,2]
[353283930,1739740232479,-150.0,0.00010635,2]
[353283931,1739740232487,-150.0,0.00010697,2]
[353283932,1739740232497,-150.0,0.00010697,2]
[353283933,1739740232506,-150.0,0.0001076,2]
[353283934,1739740232515,-150.0,0.00010885,2]
[353283935,1739740232525,-409.20417166,0.00010941,2]
[353283936,1739740232535,-200.0,0.0001095,2]
[353283937,1739740232544,-150.0,0.00010957,2]
[353283938,1739740232554,-500.0,0.00010958,2]
[353283939,1739740232564,-281.97257908,0.00010958,2]
[353283940,1739740232573,-500.0,0.00010958,2]
[353283941,1739740232582,-500.0,0.00010958,2]
[353283942,1739740232592,-500.0,0.00010958,2]